Workbook

Sheet About This Invoice Tracker
B1: About This Invoice Tracker
B4: The Invoice Tracker is designed to maintain a history of customers, invoices, and invoice details so you can store multiple invoices without creating multiple files. You can also use the Invoice Tracker to analyze your previously invoiced data. For example, you can view all invoices for a customer, a specific project, or view all invoices for the last month, the last year, and more.
B5: Before you get started, take a look at the sample data provided. On the Invoice sheet, select the cell to the right of Invoice # (cell L8) and a drop down list will appear. Select the drop down arrow and then select a sample invoice. Notice how all of the invoice information automatically changes to reflect the selected invoice. Now look at the Customers, Invoices - Main, and Invoice Details sheets. Each of these sheets supply information to the Invoice and any changes you make will be updated automatically.
B6: How do I get started?
B7: Modify the Invoice sheet so it reflects your company information using the following steps:
B8: 1. | C8: Navigate to the Invoice sheet, and on the Review tab, in the Changes group, select Unprotect Sheet.
C9: Note: The Invoice sheet is protected to help avoid unintentional changes, since, as previously mentioned, the majority of the data on this sheet is pulled from all other sheets in the workbook.
B10: 2. | C10: Customize the invoice header by typing in your Company Name, Street Address, City, ST ZIP, email address, website, and so on. At the bottom of the invoice (row 43), modify the payment instructions.
C11: Important! Do not modify the billing or invoice information. All of these cells have formulas that will automatically update the invoice, as noted in the About the Invoice Tracker section.
B12: 3. | C12: (Optional) Modify the colors throughout the workbook: On the Page Layout tab, in the Themes group, select Colors and select another theme color set from the color gallery.
B13: Tip: Create a custom theme color set to match your company branding! To do so, on the Page Layout tab, in the Themes group, select Colors, and then select Create New Theme Colors. For more on creating a custom color set, view the following Help topic:
C14: Customize a document theme.
B15: 4. | C15: After you've made your desired changes, return to the Invoice sheet and on the Review tab, in the Changes group, select Protect Sheet, and then select OK. When the Invoice sheet is protected the only cell you can select is the cell with Invoice # drop down.
B16: How do I create an invoice?
B17: 1. | C17: On the Customers sheet, enter customer information such as the company name and address. Note that the Company # is an important entry as it provides a unique identifier for each company that is used throughout the Invoice Tracker. Also note you only need to add a company once. For subsequent invoices to the same company, this step can be skipped.
C18: Note: If you assign the same number to more than one Company or enter the same Company Name more than once, the entries will turn red to alert you to the duplication.
B19: 2. | C19: On the Invoices - Main sheet, enter the primary information for your invoice such as, Invoice #, Invoice Date, and Project Description. Like the Company #, the Invoice # is an important entry as it provides a unique identifier for each invoice and is used throughout the Invoice Tracker. Another important entry is the Company. When you select a company from the drop down provided it associates your invoice with that company. Then when you select an Invoice # on the Invoice sheet, that company's information, such as company name and address, will automatically be populated on the Invoice.
C20: Note: If you assign the same number to more than one Invoice the entries will turn red to alert you to the duplication.
B21: 3. | C21: On the Invoice Details sheet, enter the details for your invoice, such as an Item Description, Item #, Qty, and Unit Price. The Invoice # drop down provides a list of invoices you entered on the Invoices - Main sheet to facilitate data entry. Similar to the Company # in the previous step, the Invoice # associates that detail item with a specific invoice. When you select a Invoice # on the Invoice sheet from the Invoice # drop down, the related invoice detail items will appear for that invoice.
C22: Note: You are limited to 25 details items per invoice. If more than 25 items are added, all corresponding entries will turn red to alert you to this limitation. If you have more than 25 invoice items you will need to create a second invoice.
B23: How do I add more customers, invoices, and invoice details?
B24: The data for Customers, Invoices, and Invoice Details are stored in Excel tables. When you add a new row to a table, the newly added row will be formatted automatically and any calculations will be copied. To add new table rows do one of the following:
B25: ● | C25: If the table does not have a Total row, start typing below the table and it will automatically expand when you press the Enter or Tab key.
B26: ● | C26: Place your cell pointer in the last cell above the Total row, such in the Invoices table in the Notes cell for the last invoice, and then press Tab.
B27: ● | C27: On the Home tab, in the Cells group, select Insert, and then select Table Rows Above or Table Rows Below.
B28: ● | C28: In the bottom right corner of the table, place your mouse on the table sizing handle and drag down to increase the number of available table rows.
B29: How do I analyze my invoice details?
B30: As noted in the About the Invoice Tracker section, after you have entered several invoices you can view a list of all invoices for a specific customer, project, a specified date interval, and much more. This type of analysis is accomplished using a Filter which enables you to quickly narrow down a list of data. To access a Filter on the Customers, Invoices, or Invoice Details tables, select a drop down arrow next to any table field name. A Filter pane will display giving you a variety of filtering options. Here are a few filtering examples to help you get started:
B31: ● | C31: To view the total amount you've invoiced a specific customer: On the Invoices - Main sheet, to the right of the Company # field, select the drop down arrow. In the Filter pane, click Select All to deselect all companies, select the desired company, and then select OK.
C32: Tip: In the Filter pane you can also type the customer name in the Search text box to quickly search the available list.
B33: ● | C33: To view all invoices for a specific customer and specific project(s): Start by filtering for your desired customer using the steps provided in the previous example. Then, to the right of Project #, select the drop down arrow. In the Filter pane, select the desired project or projects, and then select OK.
B34: ● | C34: To view all invoices for the previous month: On the Invoices - Main sheet, to the right of the Invoice Date field, select the drop down arrow, point to Date Filters, and then select Last Month.
B35: ● | C35: To view all customers with the same area code: On the Customers sheet, to the right of the Phone field, select the drop down arrow. In the Filter pane, click in the Search text box, type the area code and then select OK.
B36: Filter Tips
B37: ● | C37: If a table has a total row, such as Customers and Invoices, the calculated totals will reflect only your filtered list.
B38: ● | C38: Use multiple filters on a single field or across multiple fields to fine-tune your results.
B39: ● | C39: To clear a single filter, select the drop down arrow for a previously filtered column and then select Clear Filter From <field name>.
B40: ● | C40: To clear multiple filters at the same time, place your cell pointer in the table, on the Home tab, in the Editing group, select Sort & Filter, and then select Clear.

Sheet Invoice
B1: company name
B2: Street Address | D2: P: Phone Number | F2: Email
B3: City, State ZIP Code | D3: F: Fax Number | F3: Website
B4: Bill To: | C4: =IFERROR(VLOOKUP(VLOOKUP(rngInvoice,InvoicesMain[],2,FALSE),CustomerList[],3,TRUE),"") -> Contoso, Ltd | D4: ="Phone: "&IFERROR(VLOOKUP(VLOOKUP(rngInvoice,InvoicesMain[],2,FALSE),CustomerList[],9,FALSE),"") -> Phone: 432-555-0189 | F4: Invoice #: | G4: 3-456-2
B5: Address: | C5: =IFERROR(IF((VLOOKUP(VLOOKUP(rngInvoice,InvoicesMain[],2,FALSE),CustomerList[],5,FALSE))="","",(VLOOKUP(VLOOKUP(rngInvoice,InvoicesMain[],2,FALSE),CustomerList[],5,FALSE))),"") -> 567 Walnut Lane | D5: ="Fax: "&IFERROR(VLOOKUP(VLOOKUP(rngInvoice,InvoicesMain[],2,FALSE),CustomerList[],11,FALSE),"") -> Fax: 432-555-0123 | F5: Invoice Date: | G5: =IFERROR(IF(VLOOKUP(rngInvoice,InvoicesMain[],3,FALSE)="","",VLOOKUP(rngInvoice,InvoicesMain[],3,FALSE)),"") -> 43664
C6: =IFERROR(VLOOKUP(VLOOKUP(rngInvoice,InvoicesMain[],2,FALSE),CustomerList[],6,FALSE)&", "& VLOOKUP(VLOOKUP(G4,InvoicesMain[],2,FALSE),CustomerList[],7,FALSE)&" "&VLOOKUP(VLOOKUP(G4,InvoicesMain[],2,FALSE),CustomerList[],8,FALSE),"") -> Moline, MO 098765 | D6: ="Email: "&IFERROR(VLOOKUP(VLOOKUP(rngInvoice,InvoicesMain[],2,FALSE),CustomerList[],10,FALSE),"") -> Email: someone@example.com
B7: ="Invoice For: "&IFERROR(VLOOKUP(rngInvoice,InvoicesMain[],4),"") -> Invoice For: Project 2
B8: Item # | C8: Description | D8: Qty | E8: Unit Price | F8: Discount | G8: Price
B9: =IFERROR(INDEX(InvoiceDetails[],SMALL(IF(InvoiceDetails[Invoice '#]=rngInvoice,ROW(InvoiceDetails[])-ROW(InvoiceDetails[#Headers])), ROW(1:1)), MATCH($B$8, InvoiceDetails[#Headers], 0)),"") -> Z4567 | C9: =IFERROR(INDEX(InvoiceDetails[],SMALL(IF(InvoiceDetails[Invoice '#]=rngInvoice,ROW(InvoiceDetails[])-ROW(InvoiceDetails[#Headers])), ROW(1:1)), MATCH($C$8, InvoiceDetails[#Headers], 0)),"") -> Invoice 3-456-2 Data 1 | D9: =IFERROR(INDEX(InvoiceDetails[],SMALL(IF(InvoiceDetails[Invoice '#]=rngInvoice,ROW(InvoiceDetails[])-ROW(InvoiceDetails[#Headers])), ROW(1:1)), MATCH($D$8, InvoiceDetails[#Headers], 0)),"") -> 39 | E9: =IFERROR(INDEX(InvoiceDetails[],SMALL(IF(InvoiceDetails[Invoice '#]=rngInvoice,ROW(InvoiceDetails[])-ROW(InvoiceDetails[#Headers])), ROW(1:1)), MATCH($E$8, InvoiceDetails[#Headers], 0)),"") -> 5 | F9: =IFERROR(INDEX(InvoiceDetails[],SMALL(IF(InvoiceDetails[Invoice '#]=rngInvoice,ROW(InvoiceDetails[])-ROW(InvoiceDetails[#Headers])), ROW(1:1)), MATCH($F$8, InvoiceDetails[#Headers], 0)),"") -> 0 | G9: =IFERROR((D9*E9)-F9,"") -> 195
B10: =IFERROR(INDEX(InvoiceDetails[],SMALL(IF(InvoiceDetails[Invoice '#]=rngInvoice,ROW(InvoiceDetails[])-ROW(InvoiceDetails[#Headers])), ROW(2:2)), MATCH($B$8, InvoiceDetails[#Headers], 0)),"") -> Z4568 | C10: =IFERROR(INDEX(InvoiceDetails[],SMALL(IF(InvoiceDetails[Invoice '#]=rngInvoice,ROW(InvoiceDetails[])-ROW(InvoiceDetails[#Headers])), ROW(2:2)), MATCH($C$8, InvoiceDetails[#Headers], 0)),"") -> Invoice 3-456-2 Data 2 | D10: =IFERROR(INDEX(InvoiceDetails[],SMALL(IF(InvoiceDetails[Invoice '#]=rngInvoice,ROW(InvoiceDetails[])-ROW(InvoiceDetails[#Headers])), ROW(2:2)), MATCH($D$8, InvoiceDetails[#Headers], 0)),"") -> 40 | E10: =IFERROR(INDEX(InvoiceDetails[],SMALL(IF(InvoiceDetails[Invoice '#]=rngInvoice,ROW(InvoiceDetails[])-ROW(InvoiceDetails[#Headers])), ROW(2:2)), MATCH($E$8, InvoiceDetails[#Headers], 0)),"") -> 4 | F10: =IFERROR(INDEX(InvoiceDetails[],SMALL(IF(InvoiceDetails[Invoice '#]=rngInvoice,ROW(InvoiceDetails[])-ROW(InvoiceDetails[#Headers])), ROW(2:2)), MATCH($F$8, InvoiceDetails[#Headers], 0)),"") -> 5 | G10: 155
B11: =IFERROR(INDEX(InvoiceDetails[],SMALL(IF(InvoiceDetails[Invoice '#]=rngInvoice,ROW(InvoiceDetails[])-ROW(InvoiceDetails[#Headers])), ROW(3:3)), MATCH($B$8, InvoiceDetails[#Headers], 0)),"") -> Z4569 | C11: =IFERROR(INDEX(InvoiceDetails[],SMALL(IF(InvoiceDetails[Invoice '#]=rngInvoice,ROW(InvoiceDetails[])-ROW(InvoiceDetails[#Headers])), ROW(3:3)), MATCH($C$8, InvoiceDetails[#Headers], 0)),"") -> Invoice 3-456-2 Data 3 | D11: =IFERROR(INDEX(InvoiceDetails[],SMALL(IF(InvoiceDetails[Invoice '#]=rngInvoice,ROW(InvoiceDetails[])-ROW(InvoiceDetails[#Headers])), ROW(3:3)), MATCH($D$8, InvoiceDetails[#Headers], 0)),"") -> 30 | E11: =IFERROR(INDEX(InvoiceDetails[],SMALL(IF(InvoiceDetails[Invoice '#]=rngInvoice,ROW(InvoiceDetails[])-ROW(InvoiceDetails[#Headers])), ROW(3:3)), MATCH($E$8, InvoiceDetails[#Headers], 0)),"") -> 6 | F11: =IFERROR(INDEX(InvoiceDetails[],SMALL(IF(InvoiceDetails[Invoice '#]=rngInvoice,ROW(InvoiceDetails[])-ROW(InvoiceDetails[#Headers])), ROW(3:3)), MATCH($F$8, InvoiceDetails[#Headers], 0)),"") -> 7 | G11: 173
B12: =IFERROR(INDEX(InvoiceDetails[],SMALL(IF(InvoiceDetails[Invoice '#]=rngInvoice,ROW(InvoiceDetails[])-ROW(InvoiceDetails[#Headers])), ROW(4:4)), MATCH($B$8, InvoiceDetails[#Headers], 0)),"") -> Z4570 | C12: =IFERROR(INDEX(InvoiceDetails[],SMALL(IF(InvoiceDetails[Invoice '#]=rngInvoice,ROW(InvoiceDetails[])-ROW(InvoiceDetails[#Headers])), ROW(4:4)), MATCH($C$8, InvoiceDetails[#Headers], 0)),"") -> Invoice 3-456-2 Data 4 | D12: =IFERROR(INDEX(InvoiceDetails[],SMALL(IF(InvoiceDetails[Invoice '#]=rngInvoice,ROW(InvoiceDetails[])-ROW(InvoiceDetails[#Headers])), ROW(4:4)), MATCH($D$8, InvoiceDetails[#Headers], 0)),"") -> 40 | E12: =IFERROR(INDEX(InvoiceDetails[],SMALL(IF(InvoiceDetails[Invoice '#]=rngInvoice,ROW(InvoiceDetails[])-ROW(InvoiceDetails[#Headers])), ROW(4:4)), MATCH($E$8, InvoiceDetails[#Headers], 0)),"") -> 7 | F12: =IFERROR(INDEX(InvoiceDetails[],SMALL(IF(InvoiceDetails[Invoice '#]=rngInvoice,ROW(InvoiceDetails[])-ROW(InvoiceDetails[#Headers])), ROW(4:4)), MATCH($F$8, InvoiceDetails[#Headers], 0)),"") -> 0 | G12: 280
B13: =IFERROR(INDEX(InvoiceDetails[],SMALL(IF(InvoiceDetails[Invoice '#]=rngInvoice,ROW(InvoiceDetails[])-ROW(InvoiceDetails[#Headers])), ROW(5:5)), MATCH($B$8, InvoiceDetails[#Headers], 0)),"") -> Z4571 | C13: =IFERROR(INDEX(InvoiceDetails[],SMALL(IF(InvoiceDetails[Invoice '#]=rngInvoice,ROW(InvoiceDetails[])-ROW(InvoiceDetails[#Headers])), ROW(5:5)), MATCH($C$8, InvoiceDetails[#Headers], 0)),"") -> Invoice 3-456-2 Data 5 | D13: =IFERROR(INDEX(InvoiceDetails[],SMALL(IF(InvoiceDetails[Invoice '#]=rngInvoice,ROW(InvoiceDetails[])-ROW(InvoiceDetails[#Headers])), ROW(5:5)), MATCH($D$8, InvoiceDetails[#Headers], 0)),"") -> 10 | E13: =IFERROR(INDEX(InvoiceDetails[],SMALL(IF(InvoiceDetails[Invoice '#]=rngInvoice,ROW(InvoiceDetails[])-ROW(InvoiceDetails[#Headers])), ROW(5:5)), MATCH($E$8, InvoiceDetails[#Headers], 0)),"") -> 4 | F13: =IFERROR(INDEX(InvoiceDetails[],SMALL(IF(InvoiceDetails[Invoice '#]=rngInvoice,ROW(InvoiceDetails[])-ROW(InvoiceDetails[#Headers])), ROW(5:5)), MATCH($F$8, InvoiceDetails[#Headers], 0)),"") -> 0 | G13: 40
B14: =IFERROR(INDEX(InvoiceDetails[],SMALL(IF(InvoiceDetails[Invoice '#]=rngInvoice,ROW(InvoiceDetails[])-ROW(InvoiceDetails[#Headers])), ROW(6:6)), MATCH($B$8, InvoiceDetails[#Headers], 0)),"") -> Z4572 | C14: =IFERROR(INDEX(InvoiceDetails[],SMALL(IF(InvoiceDetails[Invoice '#]=rngInvoice,ROW(InvoiceDetails[])-ROW(InvoiceDetails[#Headers])), ROW(6:6)), MATCH($C$8, InvoiceDetails[#Headers], 0)),"") -> Invoice 3-456-2 Data 6 | D14: =IFERROR(INDEX(InvoiceDetails[],SMALL(IF(InvoiceDetails[Invoice '#]=rngInvoice,ROW(InvoiceDetails[])-ROW(InvoiceDetails[#Headers])), ROW(6:6)), MATCH($D$8, InvoiceDetails[#Headers], 0)),"") -> 5 | E14: =IFERROR(INDEX(InvoiceDetails[],SMALL(IF(InvoiceDetails[Invoice '#]=rngInvoice,ROW(InvoiceDetails[])-ROW(InvoiceDetails[#Headers])), ROW(6:6)), MATCH($E$8, InvoiceDetails[#Headers], 0)),"") -> 8 | F14: =IFERROR(INDEX(InvoiceDetails[],SMALL(IF(InvoiceDetails[Invoice '#]=rngInvoice,ROW(InvoiceDetails[])-ROW(InvoiceDetails[#Headers])), ROW(6:6)), MATCH($F$8, InvoiceDetails[#Headers], 0)),"") -> 0 | G14: 40
B15: =IFERROR(INDEX(InvoiceDetails[],SMALL(IF(InvoiceDetails[Invoice '#]=rngInvoice,ROW(InvoiceDetails[])-ROW(InvoiceDetails[#Headers])), ROW(7:7)), MATCH($B$8, InvoiceDetails[#Headers], 0)),"") -> Z4573 | C15: =IFERROR(INDEX(InvoiceDetails[],SMALL(IF(InvoiceDetails[Invoice '#]=rngInvoice,ROW(InvoiceDetails[])-ROW(InvoiceDetails[#Headers])), ROW(7:7)), MATCH($C$8, InvoiceDetails[#Headers], 0)),"") -> Invoice 3-456-2 Data 7 | D15: =IFERROR(INDEX(InvoiceDetails[],SMALL(IF(InvoiceDetails[Invoice '#]=rngInvoice,ROW(InvoiceDetails[])-ROW(InvoiceDetails[#Headers])), ROW(7:7)), MATCH($D$8, InvoiceDetails[#Headers], 0)),"") -> 70 | E15: =IFERROR(INDEX(InvoiceDetails[],SMALL(IF(InvoiceDetails[Invoice '#]=rngInvoice,ROW(InvoiceDetails[])-ROW(InvoiceDetails[#Headers])), ROW(7:7)), MATCH($E$8, InvoiceDetails[#Headers], 0)),"") -> 6 | F15: =IFERROR(INDEX(InvoiceDetails[],SMALL(IF(InvoiceDetails[Invoice '#]=rngInvoice,ROW(InvoiceDetails[])-ROW(InvoiceDetails[#Headers])), ROW(7:7)), MATCH($F$8, InvoiceDetails[#Headers], 0)),"") -> 0 | G15: 420
B16: =IFERROR(INDEX(InvoiceDetails[],SMALL(IF(InvoiceDetails[Invoice '#]=rngInvoice,ROW(InvoiceDetails[])-ROW(InvoiceDetails[#Headers])), ROW(8:8)), MATCH($B$8, InvoiceDetails[#Headers], 0)),"") -> Z4574 | C16: =IFERROR(INDEX(InvoiceDetails[],SMALL(IF(InvoiceDetails[Invoice '#]=rngInvoice,ROW(InvoiceDetails[])-ROW(InvoiceDetails[#Headers])), ROW(8:8)), MATCH($C$8, InvoiceDetails[#Headers], 0)),"") -> Invoice 3-456-2 Data 8 | D16: =IFERROR(INDEX(InvoiceDetails[],SMALL(IF(InvoiceDetails[Invoice '#]=rngInvoice,ROW(InvoiceDetails[])-ROW(InvoiceDetails[#Headers])), ROW(8:8)), MATCH($D$8, InvoiceDetails[#Headers], 0)),"") -> 25 | E16: =IFERROR(INDEX(InvoiceDetails[],SMALL(IF(InvoiceDetails[Invoice '#]=rngInvoice,ROW(InvoiceDetails[])-ROW(InvoiceDetails[#Headers])), ROW(8:8)), MATCH($E$8, InvoiceDetails[#Headers], 0)),"") -> 4 | F16: =IFERROR(INDEX(InvoiceDetails[],SMALL(IF(InvoiceDetails[Invoice '#]=rngInvoice,ROW(InvoiceDetails[])-ROW(InvoiceDetails[#Headers])), ROW(8:8)), MATCH($F$8, InvoiceDetails[#Headers], 0)),"") -> 0 | G16: 100
B17: =IFERROR(INDEX(InvoiceDetails[],SMALL(IF(InvoiceDetails[Invoice '#]=rngInvoice,ROW(InvoiceDetails[])-ROW(InvoiceDetails[#Headers])), ROW(9:9)), MATCH($B$8, InvoiceDetails[#Headers], 0)),"") -> Z4575 | C17: =IFERROR(INDEX(InvoiceDetails[],SMALL(IF(InvoiceDetails[Invoice '#]=rngInvoice,ROW(InvoiceDetails[])-ROW(InvoiceDetails[#Headers])), ROW(9:9)), MATCH($C$8, InvoiceDetails[#Headers], 0)),"") -> Invoice 3-456-2 Data 9 | D17: =IFERROR(INDEX(InvoiceDetails[],SMALL(IF(InvoiceDetails[Invoice '#]=rngInvoice,ROW(InvoiceDetails[])-ROW(InvoiceDetails[#Headers])), ROW(9:9)), MATCH($D$8, InvoiceDetails[#Headers], 0)),"") -> 5 | E17: =IFERROR(INDEX(InvoiceDetails[],SMALL(IF(InvoiceDetails[Invoice '#]=rngInvoice,ROW(InvoiceDetails[])-ROW(InvoiceDetails[#Headers])), ROW(9:9)), MATCH($E$8, InvoiceDetails[#Headers], 0)),"") -> 7 | F17: =IFERROR(INDEX(InvoiceDetails[],SMALL(IF(InvoiceDetails[Invoice '#]=rngInvoice,ROW(InvoiceDetails[])-ROW(InvoiceDetails[#Headers])), ROW(9:9)), MATCH($F$8, InvoiceDetails[#Headers], 0)),"") -> 3 | G17: 32
B18: =IFERROR(INDEX(InvoiceDetails[],SMALL(IF(InvoiceDetails[Invoice '#]=rngInvoice,ROW(InvoiceDetails[])-ROW(InvoiceDetails[#Headers])), ROW(10:10)), MATCH($B$8, InvoiceDetails[#Headers], 0)),"") -> Z4576 | C18: =IFERROR(INDEX(InvoiceDetails[],SMALL(IF(InvoiceDetails[Invoice '#]=rngInvoice,ROW(InvoiceDetails[])-ROW(InvoiceDetails[#Headers])), ROW(10:10)), MATCH($C$8, InvoiceDetails[#Headers], 0)),"") -> Invoice 3-456-2 Data 10 | D18: =IFERROR(INDEX(InvoiceDetails[],SMALL(IF(InvoiceDetails[Invoice '#]=rngInvoice,ROW(InvoiceDetails[])-ROW(InvoiceDetails[#Headers])), ROW(10:10)), MATCH($D$8, InvoiceDetails[#Headers], 0)),"") -> 80 | E18: =IFERROR(INDEX(InvoiceDetails[],SMALL(IF(InvoiceDetails[Invoice '#]=rngInvoice,ROW(InvoiceDetails[])-ROW(InvoiceDetails[#Headers])), ROW(10:10)), MATCH($E$8, InvoiceDetails[#Headers], 0)),"") -> 1 | F18: =IFERROR(INDEX(InvoiceDetails[],SMALL(IF(InvoiceDetails[Invoice '#]=rngInvoice,ROW(InvoiceDetails[])-ROW(InvoiceDetails[#Headers])), ROW(10:10)), MATCH($F$8, InvoiceDetails[#Headers], 0)),"") -> 0 | G18: 80
B19: =IFERROR(INDEX(InvoiceDetails[],SMALL(IF(InvoiceDetails[Invoice '#]=rngInvoice,ROW(InvoiceDetails[])-ROW(InvoiceDetails[#Headers])), ROW(11:11)), MATCH($B$8, InvoiceDetails[#Headers], 0)),"") -> Z4577 | C19: =IFERROR(INDEX(InvoiceDetails[],SMALL(IF(InvoiceDetails[Invoice '#]=rngInvoice,ROW(InvoiceDetails[])-ROW(InvoiceDetails[#Headers])), ROW(11:11)), MATCH($C$8, InvoiceDetails[#Headers], 0)),"") -> Invoice 3-456-2 Data 11 | D19: =IFERROR(INDEX(InvoiceDetails[],SMALL(IF(InvoiceDetails[Invoice '#]=rngInvoice,ROW(InvoiceDetails[])-ROW(InvoiceDetails[#Headers])), ROW(11:11)), MATCH($D$8, InvoiceDetails[#Headers], 0)),"") -> 65 | E19: =IFERROR(INDEX(InvoiceDetails[],SMALL(IF(InvoiceDetails[Invoice '#]=rngInvoice,ROW(InvoiceDetails[])-ROW(InvoiceDetails[#Headers])), ROW(11:11)), MATCH($E$8, InvoiceDetails[#Headers], 0)),"") -> 7 | F19: =IFERROR(INDEX(InvoiceDetails[],SMALL(IF(InvoiceDetails[Invoice '#]=rngInvoice,ROW(InvoiceDetails[])-ROW(InvoiceDetails[#Headers])), ROW(11:11)), MATCH($F$8, InvoiceDetails[#Headers], 0)),"") -> 0 | G19: 455
B20: =IFERROR(INDEX(InvoiceDetails[],SMALL(IF(InvoiceDetails[Invoice '#]=rngInvoice,ROW(InvoiceDetails[])-ROW(InvoiceDetails[#Headers])), ROW(12:12)), MATCH($B$8, InvoiceDetails[#Headers], 0)),"") -> Z4578 | C20: =IFERROR(INDEX(InvoiceDetails[],SMALL(IF(InvoiceDetails[Invoice '#]=rngInvoice,ROW(InvoiceDetails[])-ROW(InvoiceDetails[#Headers])), ROW(12:12)), MATCH($C$8, InvoiceDetails[#Headers], 0)),"") -> Invoice 3-456-2 Data 12 | D20: =IFERROR(INDEX(InvoiceDetails[],SMALL(IF(InvoiceDetails[Invoice '#]=rngInvoice,ROW(InvoiceDetails[])-ROW(InvoiceDetails[#Headers])), ROW(12:12)), MATCH($D$8, InvoiceDetails[#Headers], 0)),"") -> 44 | E20: =IFERROR(INDEX(InvoiceDetails[],SMALL(IF(InvoiceDetails[Invoice '#]=rngInvoice,ROW(InvoiceDetails[])-ROW(InvoiceDetails[#Headers])), ROW(12:12)), MATCH($E$8, InvoiceDetails[#Headers], 0)),"") -> 1 | F20: =IFERROR(INDEX(InvoiceDetails[],SMALL(IF(InvoiceDetails[Invoice '#]=rngInvoice,ROW(InvoiceDetails[])-ROW(InvoiceDetails[#Headers])), ROW(12:12)), MATCH($F$8, InvoiceDetails[#Headers], 0)),"") -> 0 | G20: 44
B21: =IFERROR(INDEX(InvoiceDetails[],SMALL(IF(InvoiceDetails[Invoice '#]=rngInvoice,ROW(InvoiceDetails[])-ROW(InvoiceDetails[#Headers])), ROW(13:13)), MATCH($B$8, InvoiceDetails[#Headers], 0)),"") ->  | C21: =IFERROR(INDEX(InvoiceDetails[],SMALL(IF(InvoiceDetails[Invoice '#]=rngInvoice,ROW(InvoiceDetails[])-ROW(InvoiceDetails[#Headers])), ROW(13:13)), MATCH($C$8, InvoiceDetails[#Headers], 0)),"") ->  | D21: =IFERROR(INDEX(InvoiceDetails[],SMALL(IF(InvoiceDetails[Invoice '#]=rngInvoice,ROW(InvoiceDetails[])-ROW(InvoiceDetails[#Headers])), ROW(13:13)), MATCH($D$8, InvoiceDetails[#Headers], 0)),"") ->  | E21: =IFERROR(INDEX(InvoiceDetails[],SMALL(IF(InvoiceDetails[Invoice '#]=rngInvoice,ROW(InvoiceDetails[])-ROW(InvoiceDetails[#Headers])), ROW(13:13)), MATCH($E$8, InvoiceDetails[#Headers], 0)),"") ->  | F21: =IFERROR(INDEX(InvoiceDetails[],SMALL(IF(InvoiceDetails[Invoice '#]=rngInvoice,ROW(InvoiceDetails[])-ROW(InvoiceDetails[#Headers])), ROW(13:13)), MATCH($F$8, InvoiceDetails[#Headers], 0)),"") -> 
B22: =IFERROR(INDEX(InvoiceDetails[],SMALL(IF(InvoiceDetails[Invoice '#]=rngInvoice,ROW(InvoiceDetails[])-ROW(InvoiceDetails[#Headers])), ROW(14:14)), MATCH($B$8, InvoiceDetails[#Headers], 0)),"") ->  | C22: =IFERROR(INDEX(InvoiceDetails[],SMALL(IF(InvoiceDetails[Invoice '#]=rngInvoice,ROW(InvoiceDetails[])-ROW(InvoiceDetails[#Headers])), ROW(14:14)), MATCH($C$8, InvoiceDetails[#Headers], 0)),"") ->  | D22: =IFERROR(INDEX(InvoiceDetails[],SMALL(IF(InvoiceDetails[Invoice '#]=rngInvoice,ROW(InvoiceDetails[])-ROW(InvoiceDetails[#Headers])), ROW(14:14)), MATCH($D$8, InvoiceDetails[#Headers], 0)),"") ->  | E22: =IFERROR(INDEX(InvoiceDetails[],SMALL(IF(InvoiceDetails[Invoice '#]=rngInvoice,ROW(InvoiceDetails[])-ROW(InvoiceDetails[#Headers])), ROW(14:14)), MATCH($E$8, InvoiceDetails[#Headers], 0)),"") ->  | F22: =IFERROR(INDEX(InvoiceDetails[],SMALL(IF(InvoiceDetails[Invoice '#]=rngInvoice,ROW(InvoiceDetails[])-ROW(InvoiceDetails[#Headers])), ROW(14:14)), MATCH($F$8, InvoiceDetails[#Headers], 0)),"") -> 
B23: =IFERROR(INDEX(InvoiceDetails[],SMALL(IF(InvoiceDetails[Invoice '#]=rngInvoice,ROW(InvoiceDetails[])-ROW(InvoiceDetails[#Headers])), ROW(15:15)), MATCH($B$8, InvoiceDetails[#Headers], 0)),"") ->  | C23: =IFERROR(INDEX(InvoiceDetails[],SMALL(IF(InvoiceDetails[Invoice '#]=rngInvoice,ROW(InvoiceDetails[])-ROW(InvoiceDetails[#Headers])), ROW(15:15)), MATCH($C$8, InvoiceDetails[#Headers], 0)),"") ->  | D23: =IFERROR(INDEX(InvoiceDetails[],SMALL(IF(InvoiceDetails[Invoice '#]=rngInvoice,ROW(InvoiceDetails[])-ROW(InvoiceDetails[#Headers])), ROW(15:15)), MATCH($D$8, InvoiceDetails[#Headers], 0)),"") ->  | E23: =IFERROR(INDEX(InvoiceDetails[],SMALL(IF(InvoiceDetails[Invoice '#]=rngInvoice,ROW(InvoiceDetails[])-ROW(InvoiceDetails[#Headers])), ROW(15:15)), MATCH($E$8, InvoiceDetails[#Headers], 0)),"") ->  | F23: =IFERROR(INDEX(InvoiceDetails[],SMALL(IF(InvoiceDetails[Invoice '#]=rngInvoice,ROW(InvoiceDetails[])-ROW(InvoiceDetails[#Headers])), ROW(15:15)), MATCH($F$8, InvoiceDetails[#Headers], 0)),"") -> 
B24: =IFERROR(INDEX(InvoiceDetails[],SMALL(IF(InvoiceDetails[Invoice '#]=rngInvoice,ROW(InvoiceDetails[])-ROW(InvoiceDetails[#Headers])), ROW(16:16)), MATCH($B$8, InvoiceDetails[#Headers], 0)),"") ->  | C24: =IFERROR(INDEX(InvoiceDetails[],SMALL(IF(InvoiceDetails[Invoice '#]=rngInvoice,ROW(InvoiceDetails[])-ROW(InvoiceDetails[#Headers])), ROW(16:16)), MATCH($C$8, InvoiceDetails[#Headers], 0)),"") ->  | D24: =IFERROR(INDEX(InvoiceDetails[],SMALL(IF(InvoiceDetails[Invoice '#]=rngInvoice,ROW(InvoiceDetails[])-ROW(InvoiceDetails[#Headers])), ROW(16:16)), MATCH($D$8, InvoiceDetails[#Headers], 0)),"") ->  | E24: =IFERROR(INDEX(InvoiceDetails[],SMALL(IF(InvoiceDetails[Invoice '#]=rngInvoice,ROW(InvoiceDetails[])-ROW(InvoiceDetails[#Headers])), ROW(16:16)), MATCH($E$8, InvoiceDetails[#Headers], 0)),"") ->  | F24: =IFERROR(INDEX(InvoiceDetails[],SMALL(IF(InvoiceDetails[Invoice '#]=rngInvoice,ROW(InvoiceDetails[])-ROW(InvoiceDetails[#Headers])), ROW(16:16)), MATCH($F$8, InvoiceDetails[#Headers], 0)),"") -> 
B25: =IFERROR(INDEX(InvoiceDetails[],SMALL(IF(InvoiceDetails[Invoice '#]=rngInvoice,ROW(InvoiceDetails[])-ROW(InvoiceDetails[#Headers])), ROW(17:17)), MATCH($B$8, InvoiceDetails[#Headers], 0)),"") ->  | C25: =IFERROR(INDEX(InvoiceDetails[],SMALL(IF(InvoiceDetails[Invoice '#]=rngInvoice,ROW(InvoiceDetails[])-ROW(InvoiceDetails[#Headers])), ROW(17:17)), MATCH($C$8, InvoiceDetails[#Headers], 0)),"") ->  | D25: =IFERROR(INDEX(InvoiceDetails[],SMALL(IF(InvoiceDetails[Invoice '#]=rngInvoice,ROW(InvoiceDetails[])-ROW(InvoiceDetails[#Headers])), ROW(17:17)), MATCH($D$8, InvoiceDetails[#Headers], 0)),"") ->  | E25: =IFERROR(INDEX(InvoiceDetails[],SMALL(IF(InvoiceDetails[Invoice '#]=rngInvoice,ROW(InvoiceDetails[])-ROW(InvoiceDetails[#Headers])), ROW(17:17)), MATCH($E$8, InvoiceDetails[#Headers], 0)),"") ->  | F25: =IFERROR(INDEX(InvoiceDetails[],SMALL(IF(InvoiceDetails[Invoice '#]=rngInvoice,ROW(InvoiceDetails[])-ROW(InvoiceDetails[#Headers])), ROW(17:17)), MATCH($F$8, InvoiceDetails[#Headers], 0)),"") -> 
B26: =IFERROR(INDEX(InvoiceDetails[],SMALL(IF(InvoiceDetails[Invoice '#]=rngInvoice,ROW(InvoiceDetails[])-ROW(InvoiceDetails[#Headers])), ROW(18:18)), MATCH($B$8, InvoiceDetails[#Headers], 0)),"") ->  | C26: =IFERROR(INDEX(InvoiceDetails[],SMALL(IF(InvoiceDetails[Invoice '#]=rngInvoice,ROW(InvoiceDetails[])-ROW(InvoiceDetails[#Headers])), ROW(18:18)), MATCH($C$8, InvoiceDetails[#Headers], 0)),"") ->  | D26: =IFERROR(INDEX(InvoiceDetails[],SMALL(IF(InvoiceDetails[Invoice '#]=rngInvoice,ROW(InvoiceDetails[])-ROW(InvoiceDetails[#Headers])), ROW(18:18)), MATCH($D$8, InvoiceDetails[#Headers], 0)),"") ->  | E26: =IFERROR(INDEX(InvoiceDetails[],SMALL(IF(InvoiceDetails[Invoice '#]=rngInvoice,ROW(InvoiceDetails[])-ROW(InvoiceDetails[#Headers])), ROW(18:18)), MATCH($E$8, InvoiceDetails[#Headers], 0)),"") ->  | F26: =IFERROR(INDEX(InvoiceDetails[],SMALL(IF(InvoiceDetails[Invoice '#]=rngInvoice,ROW(InvoiceDetails[])-ROW(InvoiceDetails[#Headers])), ROW(18:18)), MATCH($F$8, InvoiceDetails[#Headers], 0)),"") -> 
B27: =IFERROR(INDEX(InvoiceDetails[],SMALL(IF(InvoiceDetails[Invoice '#]=rngInvoice,ROW(InvoiceDetails[])-ROW(InvoiceDetails[#Headers])), ROW(19:19)), MATCH($B$8, InvoiceDetails[#Headers], 0)),"") ->  | C27: =IFERROR(INDEX(InvoiceDetails[],SMALL(IF(InvoiceDetails[Invoice '#]=rngInvoice,ROW(InvoiceDetails[])-ROW(InvoiceDetails[#Headers])), ROW(19:19)), MATCH($C$8, InvoiceDetails[#Headers], 0)),"") ->  | D27: =IFERROR(INDEX(InvoiceDetails[],SMALL(IF(InvoiceDetails[Invoice '#]=rngInvoice,ROW(InvoiceDetails[])-ROW(InvoiceDetails[#Headers])), ROW(19:19)), MATCH($D$8, InvoiceDetails[#Headers], 0)),"") ->  | E27: =IFERROR(INDEX(InvoiceDetails[],SMALL(IF(InvoiceDetails[Invoice '#]=rngInvoice,ROW(InvoiceDetails[])-ROW(InvoiceDetails[#Headers])), ROW(19:19)), MATCH($E$8, InvoiceDetails[#Headers], 0)),"") ->  | F27: =IFERROR(INDEX(InvoiceDetails[],SMALL(IF(InvoiceDetails[Invoice '#]=rngInvoice,ROW(InvoiceDetails[])-ROW(InvoiceDetails[#Headers])), ROW(19:19)), MATCH($F$8, InvoiceDetails[#Headers], 0)),"") -> 
B28: =IFERROR(INDEX(InvoiceDetails[],SMALL(IF(InvoiceDetails[Invoice '#]=rngInvoice,ROW(InvoiceDetails[])-ROW(InvoiceDetails[#Headers])), ROW(20:20)), MATCH($B$8, InvoiceDetails[#Headers], 0)),"") ->  | C28: =IFERROR(INDEX(InvoiceDetails[],SMALL(IF(InvoiceDetails[Invoice '#]=rngInvoice,ROW(InvoiceDetails[])-ROW(InvoiceDetails[#Headers])), ROW(20:20)), MATCH($C$8, InvoiceDetails[#Headers], 0)),"") ->  | D28: =IFERROR(INDEX(InvoiceDetails[],SMALL(IF(InvoiceDetails[Invoice '#]=rngInvoice,ROW(InvoiceDetails[])-ROW(InvoiceDetails[#Headers])), ROW(20:20)), MATCH($D$8, InvoiceDetails[#Headers], 0)),"") ->  | E28: =IFERROR(INDEX(InvoiceDetails[],SMALL(IF(InvoiceDetails[Invoice '#]=rngInvoice,ROW(InvoiceDetails[])-ROW(InvoiceDetails[#Headers])), ROW(20:20)), MATCH($E$8, InvoiceDetails[#Headers], 0)),"") ->  | F28: =IFERROR(INDEX(InvoiceDetails[],SMALL(IF(InvoiceDetails[Invoice '#]=rngInvoice,ROW(InvoiceDetails[])-ROW(InvoiceDetails[#Headers])), ROW(20:20)), MATCH($F$8, InvoiceDetails[#Headers], 0)),"") -> 
B29: =IFERROR(INDEX(InvoiceDetails[],SMALL(IF(InvoiceDetails[Invoice '#]=rngInvoice,ROW(InvoiceDetails[])-ROW(InvoiceDetails[#Headers])), ROW(21:21)), MATCH($B$8, InvoiceDetails[#Headers], 0)),"") ->  | C29: =IFERROR(INDEX(InvoiceDetails[],SMALL(IF(InvoiceDetails[Invoice '#]=rngInvoice,ROW(InvoiceDetails[])-ROW(InvoiceDetails[#Headers])), ROW(21:21)), MATCH($C$8, InvoiceDetails[#Headers], 0)),"") ->  | D29: =IFERROR(INDEX(InvoiceDetails[],SMALL(IF(InvoiceDetails[Invoice '#]=rngInvoice,ROW(InvoiceDetails[])-ROW(InvoiceDetails[#Headers])), ROW(21:21)), MATCH($D$8, InvoiceDetails[#Headers], 0)),"") ->  | E29: =IFERROR(INDEX(InvoiceDetails[],SMALL(IF(InvoiceDetails[Invoice '#]=rngInvoice,ROW(InvoiceDetails[])-ROW(InvoiceDetails[#Headers])), ROW(21:21)), MATCH($E$8, InvoiceDetails[#Headers], 0)),"") ->  | F29: =IFERROR(INDEX(InvoiceDetails[],SMALL(IF(InvoiceDetails[Invoice '#]=rngInvoice,ROW(InvoiceDetails[])-ROW(InvoiceDetails[#Headers])), ROW(21:21)), MATCH($F$8, InvoiceDetails[#Headers], 0)),"") -> 
B30: =IFERROR(INDEX(InvoiceDetails[],SMALL(IF(InvoiceDetails[Invoice '#]=rngInvoice,ROW(InvoiceDetails[])-ROW(InvoiceDetails[#Headers])), ROW(22:22)), MATCH($B$8, InvoiceDetails[#Headers], 0)),"") ->  | C30: =IFERROR(INDEX(InvoiceDetails[],SMALL(IF(InvoiceDetails[Invoice '#]=rngInvoice,ROW(InvoiceDetails[])-ROW(InvoiceDetails[#Headers])), ROW(22:22)), MATCH($C$8, InvoiceDetails[#Headers], 0)),"") ->  | D30: =IFERROR(INDEX(InvoiceDetails[],SMALL(IF(InvoiceDetails[Invoice '#]=rngInvoice,ROW(InvoiceDetails[])-ROW(InvoiceDetails[#Headers])), ROW(22:22)), MATCH($D$8, InvoiceDetails[#Headers], 0)),"") ->  | E30: =IFERROR(INDEX(InvoiceDetails[],SMALL(IF(InvoiceDetails[Invoice '#]=rngInvoice,ROW(InvoiceDetails[])-ROW(InvoiceDetails[#Headers])), ROW(22:22)), MATCH($E$8, InvoiceDetails[#Headers], 0)),"") ->  | F30: =IFERROR(INDEX(InvoiceDetails[],SMALL(IF(InvoiceDetails[Invoice '#]=rngInvoice,ROW(InvoiceDetails[])-ROW(InvoiceDetails[#Headers])), ROW(22:22)), MATCH($F$8, InvoiceDetails[#Headers], 0)),"") -> 
B31: =IFERROR(INDEX(InvoiceDetails[],SMALL(IF(InvoiceDetails[Invoice '#]=rngInvoice,ROW(InvoiceDetails[])-ROW(InvoiceDetails[#Headers])), ROW(23:23)), MATCH($B$8, InvoiceDetails[#Headers], 0)),"") ->  | C31: =IFERROR(INDEX(InvoiceDetails[],SMALL(IF(InvoiceDetails[Invoice '#]=rngInvoice,ROW(InvoiceDetails[])-ROW(InvoiceDetails[#Headers])), ROW(23:23)), MATCH($C$8, InvoiceDetails[#Headers], 0)),"") ->  | D31: =IFERROR(INDEX(InvoiceDetails[],SMALL(IF(InvoiceDetails[Invoice '#]=rngInvoice,ROW(InvoiceDetails[])-ROW(InvoiceDetails[#Headers])), ROW(23:23)), MATCH($D$8, InvoiceDetails[#Headers], 0)),"") ->  | E31: =IFERROR(INDEX(InvoiceDetails[],SMALL(IF(InvoiceDetails[Invoice '#]=rngInvoice,ROW(InvoiceDetails[])-ROW(InvoiceDetails[#Headers])), ROW(23:23)), MATCH($E$8, InvoiceDetails[#Headers], 0)),"") ->  | F31: =IFERROR(INDEX(InvoiceDetails[],SMALL(IF(InvoiceDetails[Invoice '#]=rngInvoice,ROW(InvoiceDetails[])-ROW(InvoiceDetails[#Headers])), ROW(23:23)), MATCH($F$8, InvoiceDetails[#Headers], 0)),"") -> 
B32: =IFERROR(INDEX(InvoiceDetails[],SMALL(IF(InvoiceDetails[Invoice '#]=rngInvoice,ROW(InvoiceDetails[])-ROW(InvoiceDetails[#Headers])), ROW(24:24)), MATCH($B$8, InvoiceDetails[#Headers], 0)),"") ->  | C32: =IFERROR(INDEX(InvoiceDetails[],SMALL(IF(InvoiceDetails[Invoice '#]=rngInvoice,ROW(InvoiceDetails[])-ROW(InvoiceDetails[#Headers])), ROW(24:24)), MATCH($C$8, InvoiceDetails[#Headers], 0)),"") ->  | D32: =IFERROR(INDEX(InvoiceDetails[],SMALL(IF(InvoiceDetails[Invoice '#]=rngInvoice,ROW(InvoiceDetails[])-ROW(InvoiceDetails[#Headers])), ROW(24:24)), MATCH($D$8, InvoiceDetails[#Headers], 0)),"") ->  | E32: =IFERROR(INDEX(InvoiceDetails[],SMALL(IF(InvoiceDetails[Invoice '#]=rngInvoice,ROW(InvoiceDetails[])-ROW(InvoiceDetails[#Headers])), ROW(24:24)), MATCH($E$8, InvoiceDetails[#Headers], 0)),"") ->  | F32: =IFERROR(INDEX(InvoiceDetails[],SMALL(IF(InvoiceDetails[Invoice '#]=rngInvoice,ROW(InvoiceDetails[])-ROW(InvoiceDetails[#Headers])), ROW(24:24)), MATCH($F$8, InvoiceDetails[#Headers], 0)),"") -> 
B33: =IFERROR(INDEX(InvoiceDetails[],SMALL(IF(InvoiceDetails[Invoice '#]=rngInvoice,ROW(InvoiceDetails[])-ROW(InvoiceDetails[#Headers])), ROW(25:25)), MATCH($B$8, InvoiceDetails[#Headers], 0)),"") ->  | C33: =IFERROR(INDEX(InvoiceDetails[],SMALL(IF(InvoiceDetails[Invoice '#]=rngInvoice,ROW(InvoiceDetails[])-ROW(InvoiceDetails[#Headers])), ROW(25:25)), MATCH($C$8, InvoiceDetails[#Headers], 0)),"") ->  | D33: =IFERROR(INDEX(InvoiceDetails[],SMALL(IF(InvoiceDetails[Invoice '#]=rngInvoice,ROW(InvoiceDetails[])-ROW(InvoiceDetails[#Headers])), ROW(25:25)), MATCH($D$8, InvoiceDetails[#Headers], 0)),"") ->  | E33: =IFERROR(INDEX(InvoiceDetails[],SMALL(IF(InvoiceDetails[Invoice '#]=rngInvoice,ROW(InvoiceDetails[])-ROW(InvoiceDetails[#Headers])), ROW(25:25)), MATCH($E$8, InvoiceDetails[#Headers], 0)),"") ->  | F33: =IFERROR(INDEX(InvoiceDetails[],SMALL(IF(InvoiceDetails[Invoice '#]=rngInvoice,ROW(InvoiceDetails[])-ROW(InvoiceDetails[#Headers])), ROW(25:25)), MATCH($F$8, InvoiceDetails[#Headers], 0)),"") -> 
F34: Invoice Subtotal | G34: =SUM(ProjectInvoice[Price]) -> 2014
F35: Tax Rate | G35: =VLOOKUP(rngInvoice,InvoicesMain[],5) -> 0.0875
F36: Sales Tax | G36: =G34*G35 -> 176.225
F37: Other | G37: =VLOOKUP(rngInvoice,InvoicesMain[],6) -> 0
B38: ="Make all checks payable to "&CompanyName&"." -> Make all checks payable to company name. | F38: Deposit Received | G38: =VLOOKUP(rngInvoice,InvoicesMain[],7) -> 0
B39: Total due in <#> days. Overdue accounts subject to a service charge of <#>% per month. | F39: TOTAL | G39: =(G34+G36+G37)-G38 -> 2190.225

Sheet Customers
C2: Customers
B3: Lookup | C3: Company # | D3: Company Name | E3: Contact Name | F3: Address | G3: City | H3: State | I3: ZIP Code | J3: Phone | K3: Email | L3: Fax
B4: =C4& " - "&D4 -> 1 - Tailspin Toys | C4: 1 | D4: Tailspin Toys | E4: Robert Lyon | F4: 345 Cherry Street | G4: Albany | H4: SD | I4: 123456 | J4: 432-555-0178 | K4: someone@example.com | L4: 432-555-0187
B5: 2 - Contoso, Ltd | C5: 2 | D5: Contoso, Ltd | E5: Sanjay Patel | F5: 567 Walnut Lane | G5: Moline | H5: MO | I5: 098765 | J5: 432-555-0189 | K5: someone@example.com | L5: 432-555-0123
B6: Total | C6: ="Total Customers: "&SUBTOTAL(103,CustomerList[Company '#]) -> Total Customers: 2

Sheet Invoices - Main
B2: Invoices
B3: Invoice # | C3: Company | D3: Invoice Date | E3: Project Description | F3: Tax Rate | G3: Other | H3: Deposit | I3: Detail Total | J3: Invoice Total | K3: Notes
B4: 3-456-1 | C4: 1 - Tailspin Toys | D4: =TODAY() -> 43654 | E4: Project 1 | F4: 0.0875 | G4: 100 | H4: 100 | I4: =SUMIF(InvoiceDetails[Invoice '#],"="&InvoicesMain[[#This Row],[Invoice '#]],InvoiceDetails[Total]) -> 5200 | J4: =(InvoicesMain[[#This Row],[Detail Total]]*(1+InvoicesMain[[#This Row],[Tax Rate]]))+InvoicesMain[[#This Row],[Other]]-InvoicesMain[[#This Row],[Deposit]] -> 5655
B5: 3-456-2 | C5: 2 - Contoso, Ltd | D5: =TODAY()+10 -> 43664 | E5: Project 2 | F5: 0.0875 | I5: =SUMIF(InvoiceDetails[Invoice '#],"="&InvoicesMain[[#This Row],[Invoice '#]],InvoiceDetails[Total]) -> 2014 | J5: =(InvoicesMain[[#This Row],[Detail Total]]*(1+InvoicesMain[[#This Row],[Tax Rate]]))+InvoicesMain[[#This Row],[Other]]-InvoicesMain[[#This Row],[Deposit]] -> 2190.225
B6: Totals | C6: ="Total Invoices: "&SUBTOTAL(103,InvoicesMain[Invoice '#]) -> Total Invoices: 2 | G6: =SUBTOTAL(109,InvoicesMain[Other]) -> 100 | H6: =SUBTOTAL(109,InvoicesMain[Deposit]) -> 100 | I6: =SUBTOTAL(109,InvoicesMain[Detail Total]) -> 7214 | J6: =SUBTOTAL(109,InvoicesMain[Invoice Total]) -> 7845.225

Sheet Invoice Details
B2: Invoice Details
B3: Description | C3: Invoice # | D3: Item # | E3: Qty | F3: Unit Price | G3: Discount | H3: Total
B4: Invoice 3-456-1 Data 1 | C4: 3-456-1 | D4: 1 | E4: 1 | F4: 1 | G4: 1 | H4: =(InvoiceDetails[[#This Row],[Qty]]*InvoiceDetails[[#This Row],[Unit Price]])-InvoiceDetails[[#This Row],[Discount]] -> 0
B5: Invoice 3-456-1 Data 2 | C5: 3-456-1 | D5: 2 | E5: 2 | F5: 2 | G5: 2 | H5: =(InvoiceDetails[[#This Row],[Qty]]*InvoiceDetails[[#This Row],[Unit Price]])-InvoiceDetails[[#This Row],[Discount]] -> 2
B6: Invoice 3-456-1 Data 3 | C6: 3-456-1 | D6: 3 | E6: 3 | F6: 3 | G6: 3 | H6: =(InvoiceDetails[[#This Row],[Qty]]*InvoiceDetails[[#This Row],[Unit Price]])-InvoiceDetails[[#This Row],[Discount]] -> 6
B7: Invoice 3-456-1 Data 4 | C7: 3-456-1 | D7: 4 | E7: 4 | F7: 4 | G7: 4 | H7: =(InvoiceDetails[[#This Row],[Qty]]*InvoiceDetails[[#This Row],[Unit Price]])-InvoiceDetails[[#This Row],[Discount]] -> 12
B8: Invoice 3-456-1 Data 5 | C8: 3-456-1 | D8: 5 | E8: 5 | F8: 5 | G8: 5 | H8: =(InvoiceDetails[[#This Row],[Qty]]*InvoiceDetails[[#This Row],[Unit Price]])-InvoiceDetails[[#This Row],[Discount]] -> 20
B9: Invoice 3-456-1 Data 6 | C9: 3-456-1 | D9: 6 | E9: 6 | F9: 6 | G9: 6 | H9: =(InvoiceDetails[[#This Row],[Qty]]*InvoiceDetails[[#This Row],[Unit Price]])-InvoiceDetails[[#This Row],[Discount]] -> 30
B10: Invoice 3-456-1 Data 7 | C10: 3-456-1 | D10: 7 | E10: 7 | F10: 7 | G10: 7 | H10: =(InvoiceDetails[[#This Row],[Qty]]*InvoiceDetails[[#This Row],[Unit Price]])-InvoiceDetails[[#This Row],[Discount]] -> 42
B11: Invoice 3-456-1 Data 8 | C11: 3-456-1 | D11: 8 | E11: 8 | F11: 8 | G11: 8 | H11: =(InvoiceDetails[[#This Row],[Qty]]*InvoiceDetails[[#This Row],[Unit Price]])-InvoiceDetails[[#This Row],[Discount]] -> 56
B12: Invoice 3-456-1 Data 9 | C12: 3-456-1 | D12: 9 | E12: 9 | F12: 9 | G12: 9 | H12: =(InvoiceDetails[[#This Row],[Qty]]*InvoiceDetails[[#This Row],[Unit Price]])-InvoiceDetails[[#This Row],[Discount]] -> 72
B13: Invoice 3-456-1 Data 10 | C13: 3-456-1 | D13: 10 | E13: 10 | F13: 10 | G13: 10 | H13: =(InvoiceDetails[[#This Row],[Qty]]*InvoiceDetails[[#This Row],[Unit Price]])-InvoiceDetails[[#This Row],[Discount]] -> 90
B14: Invoice 3-456-1 Data 11 | C14: 3-456-1 | D14: 11 | E14: 11 | F14: 11 | G14: 11 | H14: =(InvoiceDetails[[#This Row],[Qty]]*InvoiceDetails[[#This Row],[Unit Price]])-InvoiceDetails[[#This Row],[Discount]] -> 110
B15: Invoice 3-456-1 Data 12 | C15: 3-456-1 | D15: 12 | E15: 12 | F15: 12 | G15: 12 | H15: =(InvoiceDetails[[#This Row],[Qty]]*InvoiceDetails[[#This Row],[Unit Price]])-InvoiceDetails[[#This Row],[Discount]] -> 132
B16: Invoice 3-456-1 Data 13 | C16: 3-456-1 | D16: 13 | E16: 13 | F16: 13 | G16: 13 | H16: =(InvoiceDetails[[#This Row],[Qty]]*InvoiceDetails[[#This Row],[Unit Price]])-InvoiceDetails[[#This Row],[Discount]] -> 156
B17: Invoice 3-456-1 Data 14 | C17: 3-456-1 | D17: 14 | E17: 14 | F17: 14 | G17: 14 | H17: =(InvoiceDetails[[#This Row],[Qty]]*InvoiceDetails[[#This Row],[Unit Price]])-InvoiceDetails[[#This Row],[Discount]] -> 182
B18: Invoice 3-456-1 Data 15 | C18: 3-456-1 | D18: 15 | E18: 15 | F18: 15 | G18: 15 | H18: =(InvoiceDetails[[#This Row],[Qty]]*InvoiceDetails[[#This Row],[Unit Price]])-InvoiceDetails[[#This Row],[Discount]] -> 210
B19: Invoice 3-456-1 Data 16 | C19: 3-456-1 | D19: 16 | E19: 16 | F19: 16 | G19: 16 | H19: =(InvoiceDetails[[#This Row],[Qty]]*InvoiceDetails[[#This Row],[Unit Price]])-InvoiceDetails[[#This Row],[Discount]] -> 240
B20: Invoice 3-456-1 Data 17 | C20: 3-456-1 | D20: 17 | E20: 17 | F20: 17 | G20: 17 | H20: =(InvoiceDetails[[#This Row],[Qty]]*InvoiceDetails[[#This Row],[Unit Price]])-InvoiceDetails[[#This Row],[Discount]] -> 272
B21: Invoice 3-456-1 Data 18 | C21: 3-456-1 | D21: 18 | E21: 18 | F21: 18 | G21: 18 | H21: =(InvoiceDetails[[#This Row],[Qty]]*InvoiceDetails[[#This Row],[Unit Price]])-InvoiceDetails[[#This Row],[Discount]] -> 306
B22: Invoice 3-456-1 Data 19 | C22: 3-456-1 | D22: 19 | E22: 19 | F22: 19 | G22: 19 | H22: =(InvoiceDetails[[#This Row],[Qty]]*InvoiceDetails[[#This Row],[Unit Price]])-InvoiceDetails[[#This Row],[Discount]] -> 342
B23: Invoice 3-456-1 Data 20 | C23: 3-456-1 | D23: 20 | E23: 20 | F23: 20 | G23: 20 | H23: =(InvoiceDetails[[#This Row],[Qty]]*InvoiceDetails[[#This Row],[Unit Price]])-InvoiceDetails[[#This Row],[Discount]] -> 380
B24: Invoice 3-456-1 Data 21 | C24: 3-456-1 | D24: 21 | E24: 21 | F24: 21 | G24: 21 | H24: =(InvoiceDetails[[#This Row],[Qty]]*InvoiceDetails[[#This Row],[Unit Price]])-InvoiceDetails[[#This Row],[Discount]] -> 420
B25: Invoice 3-456-1 Data 22 | C25: 3-456-1 | D25: 22 | E25: 22 | F25: 22 | G25: 22 | H25: =(InvoiceDetails[[#This Row],[Qty]]*InvoiceDetails[[#This Row],[Unit Price]])-InvoiceDetails[[#This Row],[Discount]] -> 462
B26: Invoice 3-456-1 Data 23 | C26: 3-456-1 | D26: 23 | E26: 23 | F26: 23 | G26: 23 | H26: =(InvoiceDetails[[#This Row],[Qty]]*InvoiceDetails[[#This Row],[Unit Price]])-InvoiceDetails[[#This Row],[Discount]] -> 506
B27: Invoice 3-456-1 Data 24 | C27: 3-456-1 | D27: 24 | E27: 24 | F27: 24 | G27: 24 | H27: =(InvoiceDetails[[#This Row],[Qty]]*InvoiceDetails[[#This Row],[Unit Price]])-InvoiceDetails[[#This Row],[Discount]] -> 552
B28: Invoice 3-456-1 Data 25 | C28: 3-456-1 | D28: 25 | E28: 25 | F28: 25 | G28: 25 | H28: =(InvoiceDetails[[#This Row],[Qty]]*InvoiceDetails[[#This Row],[Unit Price]])-InvoiceDetails[[#This Row],[Discount]] -> 600
B29: Invoice 3-456-2 Data 1 | C29: 3-456-2 | D29: Z4567 | E29: 39 | F29: 5 | H29: =(InvoiceDetails[[#This Row],[Qty]]*InvoiceDetails[[#This Row],[Unit Price]])-InvoiceDetails[[#This Row],[Discount]] -> 195
B30: Invoice 3-456-2 Data 2 | C30: 3-456-2 | D30: Z4568 | E30: 40 | F30: 4 | G30: 5 | H30: =(InvoiceDetails[[#This Row],[Qty]]*InvoiceDetails[[#This Row],[Unit Price]])-InvoiceDetails[[#This Row],[Discount]] -> 155
B31: Invoice 3-456-2 Data 3 | C31: 3-456-2 | D31: Z4569 | E31: 30 | F31: 6 | G31: 7 | H31: =(InvoiceDetails[[#This Row],[Qty]]*InvoiceDetails[[#This Row],[Unit Price]])-InvoiceDetails[[#This Row],[Discount]] -> 173
B32: Invoice 3-456-2 Data 4 | C32: 3-456-2 | D32: Z4570 | E32: 40 | F32: 7 | H32: =(InvoiceDetails[[#This Row],[Qty]]*InvoiceDetails[[#This Row],[Unit Price]])-InvoiceDetails[[#This Row],[Discount]] -> 280
B33: Invoice 3-456-2 Data 5 | C33: 3-456-2 | D33: Z4571 | E33: 10 | F33: 4 | H33: =(InvoiceDetails[[#This Row],[Qty]]*InvoiceDetails[[#This Row],[Unit Price]])-InvoiceDetails[[#This Row],[Discount]] -> 40
B34: Invoice 3-456-2 Data 6 | C34: 3-456-2 | D34: Z4572 | E34: 5 | F34: 8 | H34: =(InvoiceDetails[[#This Row],[Qty]]*InvoiceDetails[[#This Row],[Unit Price]])-InvoiceDetails[[#This Row],[Discount]] -> 40
B35: Invoice 3-456-2 Data 7 | C35: 3-456-2 | D35: Z4573 | E35: 70 | F35: 6 | H35: =(InvoiceDetails[[#This Row],[Qty]]*InvoiceDetails[[#This Row],[Unit Price]])-InvoiceDetails[[#This Row],[Discount]] -> 420
B36: Invoice 3-456-2 Data 8 | C36: 3-456-2 | D36: Z4574 | E36: 25 | F36: 4 | H36: =(InvoiceDetails[[#This Row],[Qty]]*InvoiceDetails[[#This Row],[Unit Price]])-InvoiceDetails[[#This Row],[Discount]] -> 100
B37: Invoice 3-456-2 Data 9 | C37: 3-456-2 | D37: Z4575 | E37: 5 | F37: 7 | G37: 3 | H37: =(InvoiceDetails[[#This Row],[Qty]]*InvoiceDetails[[#This Row],[Unit Price]])-InvoiceDetails[[#This Row],[Discount]] -> 32
B38: Invoice 3-456-2 Data 10 | C38: 3-456-2 | D38: Z4576 | E38: 80 | F38: 1 | H38: =(InvoiceDetails[[#This Row],[Qty]]*InvoiceDetails[[#This Row],[Unit Price]])-InvoiceDetails[[#This Row],[Discount]] -> 80
B39: Invoice 3-456-2 Data 11 | C39: 3-456-2 | D39: Z4577 | E39: 65 | F39: 7 | H39: =(InvoiceDetails[[#This Row],[Qty]]*InvoiceDetails[[#This Row],[Unit Price]])-InvoiceDetails[[#This Row],[Discount]] -> 455
B40: Invoice 3-456-2 Data 12 | C40: 3-456-2 | D40: Z4578 | E40: 44 | F40: 1 | H40: =(InvoiceDetails[[#This Row],[Qty]]*InvoiceDetails[[#This Row],[Unit Price]])-InvoiceDetails[[#This Row],[Discount]] -> 44
